{"text_format":"1","workbook":"xlsx","n_sheets":3,"sheets":["FORM","GUIDE","DATA"],"not_rendered":{"charts":0,"images":1,"macros":1,"external_links":0,"defined_names":0,"comments":0,"pivot_tables":0},"unopened":[],"bounds":{"document_bytes":16777216,"sheet_cells":100000,"rows_first":2000,"rows_last":500,"rows_between":2000,"halvings":0,"cell_chars":16384,"cell_head_chars":4096},"cells_cut":0,"cells_raw":0,"read":"whole","date_system":"1900"}

{"sheet":"FORM","index":0,"n_rows":26,"n_cols":9,"rows_kept":26,"cut":false,"hidden":false,"merged":[[3,1,3,2],[25,4,25,7],[4,1,4,2],[5,1,5,2],[6,1,6,2]]}
[]
[]
[]
[null,"Please Select County:",null,null,"Installation Component","Fee","UOM","Qty","Total"]
[null,null,null,null,"Service, including one service disconnect - 15 to 400 amperes",null,"EA",null,{"$f":"F5*H5","v":0}]
[null,null,null,null,"Service, including one service disconnect - 401 to 800 amperes",null,"EA",null,{"$f":"F6*H6","v":0}]
[null,null,null,null,"Service, including one service disconnect - over 800 amperes",null,"EA",null,{"$f":"F7*H7","v":0}]
[null,null,null,null,"Additional service disconnect",null,"EA",null,0]
[null,null,null,null,"Feeder",null,"EA",null,0]
[null,null,null,null,"Branch circuit – 20 amperes or less",null,"EA",null,0]
[null,null,null,null,"Branch circuit – 21 to 60 amperes",null,"EA",null,0]
[null,null,null,null,"Branch circuit – over 60 amperes",null,"EA",null,0]
[null,null,null,null,"Temporary service and wiring",null,"LS",null,0]
[null,null,null,null,"Fire pump",null,"EA",null,0]
[null,null,null,null,"Transformer, reactor, or similar component",null,"EA",null,0]
[null,null,null,null,"Fire alarm, communication and data, and power over ethernet device",null,"EA",null,0]
[null,null,null,null,"Emergency standby system, including generator, one transfer switch, and inverter",null,"EA",null,0]
[null,null,null,null,"Additional emergency standby transfer switch",null,"EA",null,0]
[null,null,null,null,"Solar photovoltaic system – 0-10 kW",null,"EA",null,0]
[null,null,null,null,"Solar photovoltaic system – 11-20 kW",null,"EA",null,0]
[null,null,null,null,"Solar photovoltaic system – over 20 kW",null,"EA",null,0]
[null,null,null,null,"Swimming pool, including associated wiring",null,"EA",null,0]
[null,null,null,null,"Elevator, escalator, or dumbwaiter, including associated wiring",null,"EA",null,0]
[null,null,null,null,"Plan Review",null,"LS",null,0]
[null,null,null,null,"Reinspection Fee",null,"EA",null,0]
[null,null,null,null,"GRAND TOTAL  ",null,null,null,{"$f":"SUM(I5:I25)","v":0}]

{"sheet":"GUIDE","index":1,"n_rows":0,"n_cols":0,"rows_kept":0,"cut":false,"hidden":false,"merged":[]}

{"sheet":"DATA","index":2,"n_rows":77,"n_cols":12,"rows_kept":77,"cut":false,"hidden":false,"merged":[[24,1,24,4],[24,7,24,10],[50,1,50,4],[50,7,50,10],[76,1,76,4]]}
[]
[null,"Marathon County - Permit Fee & Plan Review Calculator",null,null,null,null,null,"Lincoln County - Permit Fee & Plan Review Calculator"]
[null,"Installation Component","Fee","UOM","Qty","Total",null,"Installation Component","Fee","UOM","Qty","Total"]
[null,"Service, including one service disconnect - 15 to 400 amperes",115.63,"EA",null,{"$f":"C4*E4","v":0},null,"Service, including one service disconnect - 15 to 400 amperes",118.75,"EA",null,{"$f":"I4*K4","v":0}]
[null,"Service, including one service disconnect - 401 to 800 amperes",161.88,"EA",null,{"$f":"C5*E5","v":0},null,"Service, including one service disconnect - 401 to 800 amperes",166.25,"EA",null,{"$f":"I5*K5","v":0}]
[null,"Service, including one service disconnect - over 800 amperes",208.13,"EA",null,{"$f":"C6*E6","v":0},null,"Service, including one service disconnect - over 800 amperes",213.75,"EA",null,{"$f":"I6*K6","v":0}]
[null,"Additional service disconnect",23.13,"EA",null,0,null,"Additional service disconnect",23.75,"EA",null,0]
[null,"Feeder",69.38,"EA",null,0,null,"Feeder",71.25,"EA",null,0]
[null,"Branch circuit – 20 amperes or less",32.380000000000003,"EA",null,0,null,"Branch circuit – 20 amperes or less",33.25,"EA",null,0]
[null,"Branch circuit – 21 to 60 amperes",46.25,"EA",null,0,null,"Branch circuit – 21 to 60 amperes",47.5,"EA",null,0]
[null,"Branch circuit – over 60 amperes",69.38,"EA",null,0,null,"Branch circuit – over 60 amperes",71.25,"EA",null,0]
[null,"Temporary service and wiring",277.5,"LS",null,0,null,"Temporary service and wiring",285,"LS",null,0]
[null,"Fire pump",208.13,"EA",null,0,null,"Fire pump",213.75,"EA",null,0]
[null,"Transformer, reactor, or similar component",69.38,"EA",null,0,null,"Transformer, reactor, or similar component",71.25,"EA",null,0]
[null,"Fire alarm, communication and data, and power over ethernet device",4.63,"EA",null,0,null,"Fire alarm, communication and data, and power over ethernet device",4.75,"EA",null,0]
[null,"Emergency standby system, including generator, one transfer switch, and inverter",231.25,"EA",null,0,null,"Emergency standby system, including generator, one transfer switch, and inverter",237.5,"EA",null,0]
[null,"Additional emergency standby transfer switch",185,"EA",null,0,null,"Additional emergency standby transfer switch",190,"EA",null,0]
[null,"Solar photovoltaic system – 0-10 kW",185,"EA",null,0,null,"Solar photovoltaic system – 0-10 kW",190,"EA",null,0]
[null,"Solar photovoltaic system – 11-20 kW",277.5,"EA",null,0,null,"Solar photovoltaic system – 11-20 kW",285,"EA",null,0]
[null,"Solar photovoltaic system – over 20 kW",555,"EA",null,0,null,"Solar photovoltaic system – over 20 kW",570,"EA",null,0]
[null,"Swimming pool, including associated wiring",277.5,"EA",null,0,null,"Swimming pool, including associated wiring",285,"EA",null,0]
[null,"Elevator, escalator, or dumbwaiter, including associated wiring",185,"EA",null,0,null,"Elevator, escalator, or dumbwaiter, including associated wiring",190,"EA",null,0]
[null,"Plan Review",225,"LS",null,{"$f":"C23*E23","v":0},null,"Plan Review",225,"LS",null,{"$f":"I23*K23","v":0}]
[null,"Reinspection Fee",270,"EA",null,0,null,"Reinspection Fee",285,"EA",null,0]
[null,"GRAND TOTAL  ",null,null,null,{"$f":"SUM(F4:F24)","v":0},null,"GRAND TOTAL  ",null,null,null,{"$f":"SUM(L4:L24)","v":0}]
[]
[]
[null,"Langlade County - Permit Fee & Plan Review Calculator",null,null,null,null,null,"Oneida County - Permit Fee & Plan Review Calculator"]
[null,"Installation Component","Fee","UOM","Qty","Total",null,"Installation Component","Fee","UOM","Qty","Total"]
[null,"Service, including one service disconnect - 15 to 400 amperes",118.75,"EA",null,{"$f":"C30*E30","v":0},null,"Service, including one service disconnect - 15 to 400 amperes",125,"EA",null,{"$f":"I30*K30","v":0}]
[null,"Service, including one service disconnect - 401 to 800 amperes",166.25,"EA",null,{"$f":"C31*E31","v":0},null,"Service, including one service disconnect - 401 to 800 amperes",175,"EA",null,{"$f":"I31*K31","v":0}]
[null,"Service, including one service disconnect - over 800 amperes",213.75,"EA",null,{"$f":"C32*E32","v":0},null,"Service, including one service disconnect - over 800 amperes",225,"EA",null,{"$f":"I32*K32","v":0}]
[null,"Additional service disconnect",23.75,"EA",null,0,null,"Additional service disconnect",25,"EA",null,0]
[null,"Feeder",71.25,"EA",null,0,null,"Feeder",75,"EA",null,0]
[null,"Branch circuit – 20 amperes or less",33.25,"EA",null,0,null,"Branch circuit – 20 amperes or less",35,"EA",null,0]
[null,"Branch circuit – 21 to 60 amperes",47.5,"EA",null,0,null,"Branch circuit – 21 to 60 amperes",50,"EA",null,0]
[null,"Branch circuit – over 60 amperes",71.25,"EA",null,0,null,"Branch circuit – over 60 amperes",75,"EA",null,0]
[null,"Temporary service and wiring",285,"LS",null,0,null,"Temporary service and wiring",300,"LS",null,0]
[null,"Fire pump",213.75,"EA",null,0,null,"Fire pump",225,"EA",null,0]
[null,"Transformer, reactor, or similar component",71.25,"EA",null,0,null,"Transformer, reactor, or similar component",75,"EA",null,0]
[null,"Fire alarm, communication and data, and power over ethernet device",4.75,"EA",null,0,null,"Fire alarm, communication and data, and power over ethernet device",5,"EA",null,0]
[null,"Emergency standby system, including generator, one transfer switch, and inverter",237.5,"EA",null,0,null,"Emergency standby system, including generator, one transfer switch, and inverter",250,"EA",null,0]
[null,"Additional emergency standby transfer switch",190,"EA",null,0,null,"Additional emergency standby transfer switch",200,"EA",null,0]
[null,"Solar photovoltaic system – 0-10 kW",190,"EA",null,0,null,"Solar photovoltaic system – 0-10 kW",200,"EA",null,0]
[null,"Solar photovoltaic system – 11-20 kW",285,"EA",null,0,null,"Solar photovoltaic system – 11-20 kW",300,"EA",null,0]
[null,"Solar photovoltaic system – over 20 kW",570,"EA",null,0,null,"Solar photovoltaic system – over 20 kW",600,"EA",null,0]
[null,"Swimming pool, including associated wiring",285,"EA",null,0,null,"Swimming pool, including associated wiring",300,"EA",null,0]
[null,"Elevator, escalator, or dumbwaiter, including associated wiring",190,"EA",null,0,null,"Elevator, escalator, or dumbwaiter, including associated wiring",200,"EA",null,0]
[null,"Plan Review",225,"LS",null,0,null,"Plan Review",225,"LS",null,0]
[null,"Reinspection Fee",285,"EA",null,0,null,"Reinspection Fee",300,"EA",null,0]
[null,"GRAND TOTAL  ",null,null,null,{"$f":"SUM(F30:F50)","v":0},null,"GRAND TOTAL  ",null,null,null,{"$f":"SUM(L30:L50)","v":0}]
[]
[]
[null,"Vilas County - Permit Fee & Plan Review Calculator"]
[null,"Installation Component","Fee","UOM","Qty","Total"]
[null,"Service, including one service disconnect - 15 to 400 amperes",125,"EA",null,{"$f":"C56*E56","v":0}]
[null,"Service, including one service disconnect - 401 to 800 amperes",175,"EA",null,{"$f":"C57*E57","v":0}]
[null,"Service, including one service disconnect - over 800 amperes",225,"EA",null,{"$f":"C58*E58","v":0}]
[null,"Additional service disconnect",25,"EA",null,0]
[null,"Feeder",75,"EA",null,0]
[null,"Branch circuit – 20 amperes or less",35,"EA",null,0]
[null,"Branch circuit – 21 to 60 amperes",50,"EA",null,0]
[null,"Branch circuit – over 60 amperes",75,"EA",null,0]
[null,"Temporary service and wiring",300,"LS",null,0]
[null,"Fire pump",225,"EA",null,0]
[null,"Transformer, reactor, or similar component",75,"EA",null,0]
[null,"Fire alarm, communication and data, and power over ethernet device",5,"EA",null,0]
[null,"Emergency standby system, including generator, one transfer switch, and inverter",250,"EA",null,0]
[null,"Additional emergency standby transfer switch",200,"EA",null,0]
[null,"Solar photovoltaic system – 0-10 kW",200,"EA",null,0]
[null,"Solar photovoltaic system – 11-20 kW",300,"EA",null,0]
[null,"Solar photovoltaic system – over 20 kW",600,"EA",null,0]
[null,"Swimming pool, including associated wiring",300,"EA",null,0]
[null,"Elevator, escalator, or dumbwaiter, including associated wiring",200,"EA",null,0]
[null,"Plan Review",225,"LS",null,0]
[null,"Reinspection Fee",300,"EA",null,0]
[null,"GRAND TOTAL  ",null,null,null,{"$f":"SUM(F56:F76)","v":0}]